fUST/lending_fUST_20240903
["ID","MTS","AMOUNT","RATE_DAILY","PERIOD"]
[337038424,1725370238768,-500.0,0.00023587,2]
[337038426,1725370238777,-500.0,0.00023587,2]
[337038428,1725370238786,-500.0,0.00023587,2]
[337038430,1725370238795,-500.0,0.00023587,2]
[337038431,1725370238805,-500.0,0.00023587,2]
[337038432,1725370238814,-500.0,0.00023587,2]
[337038433,1725370238828,-500.0,0.00023587,2]
[337038434,1725370238837,-500.0,0.00023587,2]
[337038435,1725370238846,-500.0,0.00023587,2]
[337038436,1725370238856,-500.0,0.00023587,2]
[337038437,1725370238865,-500.0,0.00023587,2]
[337038438,1725370238876,-500.0,0.00023587,2]
[337038439,1725370238885,-500.0,0.00023587,2]
[337038440,1725370238895,-500.0,0.00023587,2]
[337038441,1725370238906,-500.0,0.00023587,2]
[337038442,1725370238916,-500.0,0.00023587,2]
[337038443,1725370238925,-500.0,0.00023587,2]
[337038444,1725370239035,-500.0,0.00023587,2]
[337038445,1725370239046,-500.0,0.00023587,2]
[337038446,1725370239056,-500.0,0.00023587,2]
[337038447,1725370239066,-500.0,0.00023587,2]
[337038448,1725370239075,-500.0,0.00023587,2]
[337038449,1725370239085,-500.0,0.00023587,2]
[337038450,1725370239094,-500.0,0.00023587,2]
[337038451,1725370239104,-500.0,0.00023587,2]
[337038452,1725370239114,-500.0,0.00023587,2]
[337038453,1725370239129,-500.0,0.00023587,2]
[337038454,1725370239138,-500.0,0.00023587,2]
[337038455,1725370239148,-500.0,0.00023587,2]
[337038456,1725370239157,-500.0,0.00023587,2]
[337038457,1725370239168,-500.0,0.00023587,2]
[337038458,1725370239178,-500.0,0.00023587,2]
[337038459,1725370239187,-500.0,0.00023587,2]
[337038460,1725370239203,-500.0,0.00023587,2]
[337038461,1725370239215,-500.0,0.00023587,2]
[337038462,1725370239226,-485.77639565,0.00023587,2]
[337038463,1725370239236,-500.0,0.00023587,2]
[337038464,1725370239246,-500.0,0.00023587,2]
[337038465,1725370239260,-500.0,0.00023587,2]
[337038466,1725370239270,-500.0,0.00023587,2]
[337038467,1725370239280,-500.0,0.00023587,2]
[337038468,1725370239291,-500.0,0.00023587,2]
[337038469,1725370239302,-500.0,0.00023587,2]
[337038470,1725370239312,-500.0,0.00023587,2]
[337038471,1725370239321,-500.0,0.00023587,2]
[337038472,1725370239331,-500.0,0.00023587,2]
[337038473,1725370239341,-500.0,0.00023587,2]
[337038474,1725370239350,-500.0,0.00023587,2]
[337038475,1725370239360,-500.0,0.00023588,2]
[337038476,1725370239370,-192.31440393,0.00023588,2]
[337038477,1725370239380,-500.0,0.00023588,2]
[337038478,1725370239389,-500.0,0.00023588,2]
[337038479,1725370239399,-285.11472977,0.00023588,2]
[337038480,1725370239409,-500.0,0.00023588,2]
[337038481,1725370239419,-253.30608899,0.00023588,2]
[337038482,1725370239429,-500.0,0.00023588,2]
[337038483,1725370239443,-500.0,0.00023588,2]
[337038484,1725370239453,-500.0,0.00023588,2]
[337038485,1725370239462,-500.0,0.00023588,2]
[337038486,1725370239472,-500.0,0.00023588,2]
[337038487,1725370239481,-500.0,0.00023588,2]
[337038488,1725370239490,-500.0,0.00023588,2]
[337038489,1725370239499,-500.0,0.00023588,2]
[337038490,1725370239508,-500.0,0.00023588,2]
[337038491,1725370239517,-500.0,0.00023588,2]
[337038492,1725370239526,-500.0,0.00023588,2]
[337038493,1725370239536,-500.0,0.00023588,2]
[337038494,1725370239545,-500.0,0.00023588,2]
[337038495,1725370239554,-500.0,0.00023588,2]
[337038496,1725370239564,-536.3122018,0.00023588,2]
[337038497,1725370239573,-500.0,0.00023588,2]
[337038498,1725370239582,-500.0,0.00023588,2]
[337038499,1725370239592,-500.0,0.00023588,2]
[337038500,1725370239602,-500.0,0.00023588,2]
[337038501,1725370239612,-500.0,0.00023588,2]
[337038502,1725370239621,-647.76711137,0.00023588,2]
[337038503,1725370239631,-500.0,0.00023588,2]
[337038504,1725370239640,-500.0,0.00023588,2]
[337038505,1725370239650,-500.0,0.00023588,2]
[337038506,1725370239660,-500.0,0.00023588,2]
[337038507,1725370239670,-733637.828736,0.00023589,3]
[337038508,1725370239680,-4663.50581639,0.00023598,2]
[337038509,1725370239693,-4663.50581639,0.00023599,2]
[337038510,1725370239704,-4663.50581639,0.00023599,2]
[337038511,1725370239713,-4663.50581639,0.000236,2]
[337038512,1725370239723,-4663.50581639,0.000236,2]
[337038513,1725370239732,-1626.35288137,0.00023601,2]
[337038514,1725370239742,-150.112233,0.000237,3]
[337038515,1725370239751,-2900.0,0.0002371,2]
[337038516,1725370239762,-199.91754776,0.00023773,2]
[337038517,1725370239772,-420.0,0.00023814,2]
[337038518,1725370239781,-465.51291619,0.00023907,2]
[337038519,1725370239791,-150.112233,0.00024,5]
[337038520,1725370239801,-420.0,0.00024104,2]
[337038521,1725370239811,-150.112233,0.000242,4]
[337038522,1725370239820,-150.112233,0.000245,4]
[337038523,1725370239830,-500.0,0.00024658,2]
[337038524,1725370239839,-500.0,0.00024658,2]
[337038525,1725370239850,-500.0,0.00024658,2]
[337038526,1725370239860,-500.0,0.00024658,2]
[337038527,1725370239870,-500.0,0.00024658,2]
[337038528,1725370239880,-500.0,0.00024658,2]
[337038529,1725370239890,-500.0,0.00024658,2]
[337038530,1725370239899,-404.30881078,0.00024658,2]
[337038531,1725370239910,-500.0,0.00024658,2]
[337038532,1725370239919,-500.0,0.00024658,2]
[337038533,1725370239929,-500.0,0.00024658,2]
[337038534,1725370239939,-500.0,0.00024658,2]
[337038535,1725370239954,-500.0,0.00024658,2]
[337038536,1725370239970,-500.0,0.00024658,2]
[337038537,1725370239980,-500.0,0.00024658,2]
[337038538,1725370239989,-500.0,0.00024658,2]
[337038539,1725370239999,-500.0,0.00024658,2]
[337038540,1725370240009,-500.0,0.00024658,2]
[337038541,1725370240019,-550.00000001,0.00024658,2]
[337038542,1725370240029,-500.0,0.00024658,2]
[337038543,1725370240039,-500.0,0.00024658,2]
[337038544,1725370240049,-500.0,0.00024658,2]
[337038545,1725370240059,-500.0,0.00024658,2]
[337038546,1725370240068,-500.0,0.00024658,2]
[337038547,1725370240078,-503.48924858,0.00024673,2]
[337038548,1725370240088,-465.97,0.000247,14]
[337038549,1725370240098,-150.112236,0.000247,3]
[337038550,1725370240107,-203.31,0.000247,14]
[337038551,1725370240117,-151.0,0.000247,2]
[337038552,1725370240127,-151.0,0.000247,7]
[337038553,1725370240140,-151.0,0.000247,7]
[337038554,1725370240150,-151.571377,0.000247,7]
[337038555,1725370240160,-431511.33671193,0.000247,14]
[337038561,1725370242940,-453.50239903,0.0002347,4]
[337038562,1725370242954,-453.50239903,0.00023705,4]
[337038563,1725370242965,-453.50239903,0.00023939,4]
[337038564,1725370242974,-453.50239903,0.00024174,4]
[337038565,1725370242983,-604.66986537,0.00024409,6]
[337038566,1725370242993,-604.66986537,0.00024644,6]
[337038567,1725370243002,-624.98,0.0002469,3]
[337038568,1725370243012,-287517.92328807,0.000247,14]
[337038569,1725370243021,-151.0,0.000247,7]
[337038570,1725370243031,-152.880489,0.000247,7]
[337038571,1725370243040,-194.43322,0.000247,7]
[337038572,1725370243049,-194.43322,0.000247,7]
[337038574,1725370243059,-603.79533168,0.00024878,6]
[337038576,1725370243068,-161.11827143,0.00024959,2]
[337038578,1725370243078,-370997.1377,0.00024999,2]
[337038579,1725370243088,-8984.39016386,0.00025,2]
[337038581,1725370243098,-3345.74528205,0.00025,7]
[337038582,1725370243107,-310.2158601,0.00025,60]
[337038583,1725370243116,-65986.68207878,0.00025,2]
[337038584,1725370243132,-32454.38483087,0.00025,2]
[337038585,1725370243314,-5799.5,0.00025,2]
[337038592,1725370246218,-756.324146,0.00023587,2]
[337038601,1725371102434,189.9146087,0.00019314,2]
[337038602,1725371192322,189.8911936,0.00019913,2]
[337038603,1725371208194,1958.1675283,0.00019913,2]
[337038605,1725371242072,1162.2397545,0.00019913,2]
[337038606,1725371300016,504.59267832,0.00019,2]
[337038607,1725371305645,500.0,0.0002,2]
[337038609,1725371399544,251.0,0.0001991,2]
[337038610,1725371407502,477.5995377,0.0001952,2]
[337038611,1725371428121,276.31710913,0.0002,2]
[337038625,1725371432709,-1168.02,0.0002033,2]
[337038626,1725371432721,-590.75,0.0002033,2]
[337038641,1725371438491,-1241.23,0.0002033,2]
[337038643,1725371438502,-465.62997688,0.00020496,2]
[337038645,1725371438511,-250.0,0.00020551,2]
[337038647,1725371438521,-250.0,0.00020608,2]
[337038649,1725371438531,-166.628357,0.00020664,2]
[337038652,1725371438543,-83.371643,0.00020664,2]
[337038654,1725371438552,-250.0,0.00020721,2]
[337038656,1725371438563,-11169.70230709,0.00020733,2]
[337038657,1725371438573,-536.8375656,0.00020762,2]
[337038658,1725371438583,-250.0,0.00020777,2]
[337038659,1725371438592,-300.0,0.00020788,2]
[337038660,1725371438602,-300.0,0.00020788,2]
[337038661,1725371438611,-10484.92770655,0.00020789,2]
[337038662,1725371438624,-993.2218712,0.00020789,2]
[337038663,1725371438635,-8155.56120508,0.00020789,2]
[337038664,1725371438647,-5266.28921717,0.00020789,2]
[337038665,1725371438657,-333.12527916,0.000208,2]
[337038666,1725371438666,-250.0,0.00020833,2]
[337038667,1725371438675,-250.0,0.0002089,2]
[337038668,1725371438684,-250.0,0.00020946,2]
[337038669,1725371438693,-250.0,0.00021002,2]
[337038670,1725371438790,-250.0,0.00021059,2]
[337038671,1725371438801,-250.0,0.00021115,2]
[337038672,1725371438811,-250.0,0.00021171,2]
[337038673,1725371438820,-250.0,0.00021228,2]
[337038674,1725371438830,-1236.380003,0.00021262,2]
[337038675,1725371438839,-250.0,0.00021284,2]
[337038676,1725371438851,-250.0,0.0002134,2]
[337038677,1725371438860,-250.0,0.00021397,2]
[337038678,1725371438869,-250.0,0.00021453,2]
[337038679,1725371438879,-250.0,0.0002151,2]
[337038680,1725371438890,-465.03149884,0.00021521,2]
[337038681,1725371438899,-250.0,0.00021566,2]
[337038682,1725371438909,-250.0,0.00021622,2]
[337038683,1725371438919,-1067.082907,0.00021676,2]
[337038684,1725371438928,-857.71,0.00021713,3]
[337038685,1725371438937,-428.85,0.00021713,3]
[337038686,1725371438947,-252.67013788,0.00021722,2]
[337038687,1725371438956,-500.0,0.00021722,2]
[337038688,1725371438966,-500.0,0.00021722,2]
[337038689,1725371438976,-500.0,0.00021722,2]
[337038690,1725371438986,-500.0,0.00021722,2]
[337038691,1725371438996,-241.6732744,0.00021722,2]
[337038692,1725371439005,-500.0,0.00021722,2]
[337038693,1725371439014,-500.0,0.00021722,2]
[337038694,1725371439023,-500.0,0.00021722,2]
[337038695,1725371439032,-500.0,0.00021722,2]
[337038696,1725371439041,-500.0,0.00021722,2]
[337038697,1725371439051,-500.0,0.00021722,2]
[337038698,1725371439060,-500.0,0.00021722,2]
[337038699,1725371439069,-500.0,0.00021722,2]
[337038700,1725371439078,-500.0,0.00021722,2]
[337038701,1725371439087,-210.53861829,0.00021722,2]
[337038702,1725371439101,-500.0,0.00021722,2]
[337038703,1725371439117,-500.0,0.00021722,2]
[337038704,1725371439126,-500.0,0.00021722,2]
[337038705,1725371439136,-500.0,0.00021722,2]
[337038706,1725371439146,-563.34371875,0.00021722,2]
[337038707,1725371439156,-500.0,0.00021722,2]
[337038708,1725371439166,-500.0,0.00021722,2]
[337038709,1725371439175,-500.0,0.00021722,2]
[337038710,1725371439184,-500.0,0.00021722,2]
[337038711,1725371439194,-500.0,0.00021722,2]
[337038712,1725371439204,-500.0,0.00021722,2]
[337038713,1725371439213,-500.0,0.00021722,2]
[337038714,1725371439222,-500.0,0.00021722,2]
[337038715,1725371439232,-500.0,0.00021722,2]
[337038716,1725371439241,-500.0,0.00021722,2]
[337038717,1725371439251,-500.0,0.00021722,2]
[337038718,1725371439261,-500.0,0.00021722,2]
[337038719,1725371439271,-500.0,0.00021722,2]
[337038720,1725371439281,-500.0,0.00021722,2]
[337038721,1725371439291,-500.0,0.00021722,2]
[337038722,1725371439301,-500.0,0.00021722,2]
[337038723,1725371439310,-500.0,0.00021722,2]
[337038724,1725371439320,-601.16612043,0.00021722,2]
[337038725,1725371439329,-500.0,0.00021722,2]
[337038726,1725371439339,-500.0,0.00021722,2]
[337038727,1725371439361,-341430.12389037,0.00021723,2]
[337038728,1725371439371,-10010.39923854,0.00021725,2]
[337038729,1725371439380,-813.95,0.00021804,3]
[337038730,1725371439389,-406.98,0.00021804,3]
[337038731,1725371439398,-203.49,0.00021804,3]
[337038732,1725371439408,-610.48,0.00021804,3]
[337038733,1725371439417,-570.96,0.00021805,3]
[337038734,1725371439427,-1627.9,0.00021805,3]
[337038735,1725371439437,-706470.848786,0.00021815,3]
[337038736,1725371439446,-23686.187876,0.00021826,2]
[337038737,1725371439456,-500.0,0.00021873,2]
[337038738,1725371439465,-504.49023696,0.00021873,2]
[337038739,1725371439475,-161.11827143,0.00021918,2]
[337038740,1725371439484,-302.36509981,0.00022,2]
[337038741,1725371439494,-302.36509981,0.00022,2]
[337038742,1725371439503,-10010.39923854,0.00022115,2]
[337038743,1725371439513,-5391.65409465,0.00022187,2]
[337038744,1725371439523,-302.36509981,0.0002222,2]
[337038745,1725371439533,-452.52208787,0.0002222,2]
[337038746,1725371439543,-5391.65409465,0.00022234,2]
[337038747,1725371439552,-1000.0,0.00022421,2]
[337038748,1725371439564,-302.36509981,0.0002244,2]
[337038749,1725371439577,-10010.39923854,0.00022504,2]
[337038750,1725371439586,-179.090941,0.00022531,2]
[337038751,1725371439599,-5391.65409465,0.00022544,2]
[337038752,1725371439610,-465.00157494,0.00022597,2]
[337038753,1725371439619,-420.0,0.00022618,2]
[337038754,1725371439628,-302.36509981,0.0002266,2]
[337038755,1725371439638,-5391.65409465,0.00022839,2]
[337038756,1725371439647,-420.0,0.00022867,2]
[337038757,1725371439663,-302.36509981,0.0002288,2]
[337038758,1725371439678,-10010.39923854,0.00022894,2]
[337038759,1725371439688,-1047.83410964,0.0002308,2]
[337038760,1725371439698,-2573.12,0.00023083,3]
[337038761,1725371439709,-1715.42,0.00023083,3]
[337038762,1725371439719,-857.7,0.00023083,3]
[337038763,1725371439729,-453.54764972,0.000231,4]
[337038764,1725371439739,-1627.9,0.00023174,3]
[337038765,1725371439749,-813.96,0.00023174,3]
[337038766,1725371439758,-406.98,0.00023174,3]
[337038767,1725371439768,-3255.8,0.00023175,3]
[337038768,1725371439778,-5391.65409465,0.00023216,2]
[337038769,1725371439788,-10010.39923854,0.00023283,2]
[337038770,1725371439797,-2546.78514362,0.00023292,2]
[337038771,1725371439807,-150.112233,0.000233,3]
[337038772,1725371439816,-1500.0,0.00023319,2]
[337038773,1725371439827,-453.54764972,0.0002332,4]
[337038774,1725371439837,-5391.65409465,0.00023435,2]
[337038775,1725371439850,-150.112233,0.000235,2]
[337038776,1725371439860,-453.54764972,0.0002354,4]
[337038777,1725371439870,-257.84,0.000236,14]
[337038778,1725371439879,-537.69,0.000236,14]
[337038779,1725371439890,-5391.65409465,0.00023706,2]
[337038780,1725371439900,-453.54764972,0.0002376,4]
[337038781,1725371439909,-150.112233,0.000238,5]
[337038782,1725371439920,-5391.65409465,0.00023934,2]
[337038783,1725371439930,-453.54764972,0.0002398,4]
[337038784,1725371439941,-398.54896744,0.00024032,2]
[337038786,1725371439950,-150.112233,0.000241,3]
[337038787,1725371439960,-150.112233,0.000241,5]
[337038788,1725371439970,-150.0,0.00024109,2]
[337038789,1725371439980,-150.112233,0.000242,4]
[337038790,1725371439991,-600.0,0.0002425,7]
[337038791,1725371440001,-5391.65409465,0.00024304,2]
[337038792,1725371440010,-150.0,0.00024354,2]
[337038793,1725371440021,-150.112233,0.000244,4]
[337038794,1725371440030,-271.976303,0.000244,4]
[337038795,1725371440040,-150.112233,0.000244,5]
[337038796,1725371440050,-494.89733401,0.00024418,2]
[337038797,1725371440060,-2000.0,0.00024424,2]
[337038799,1725371440070,-600.0,0.00024449,7]
[337038800,1725371440079,-600.0,0.00024449,7]
[337038802,1725371440089,-600.0,0.00024449,7]
[337038805,1725371440102,-600.0,0.00024449,7]
[337038809,1725371440192,-5391.65409465,0.00024466,2]
[337038810,1725371440202,-150.112233,0.000245,3]
[337038811,1725371440211,-150.0,0.00024536,2]
[337038812,1725371440221,-150.112233,0.000246,3]
[337038813,1725371440231,-150.112233,0.000246,5]
[337038814,1725371440239,-587.0,0.00024609,2]
[337038815,1725371440249,-500.0,0.00024658,2]
[337038816,1725371440258,-500.0,0.00024658,2]
[337038817,1725371440267,-500.0,0.00024658,2]
[337038818,1725371440277,-500.0,0.00024658,2]
[337038819,1725371440286,-500.0,0.00024658,2]
[337038820,1725371440295,-114054.63896311,0.000247,14]
[337038821,1725371440308,-533071.69103689,0.000247,14]
[337038822,1725371440318,-612.0202152,0.00024714,8]
[337038823,1725371440328,-600.0,0.00024715,8]
[337038824,1725371440337,-150.0,0.00024814,2]
[337038826,1725371440348,-5391.65409472,0.00024912,2]
[337038828,1725371440358,-370997.1377,0.00024999,2]
[337038830,1725371440368,-36459.04112229,0.00025,2]
[337038832,1725371440378,-37052.73169132,0.00025,2]
[337038833,1725371440388,-1000.0,0.00025,2]
[337038835,1725371440397,-107910.46280449,0.0002509,2]
[337038837,1725371440407,-587.0,0.00025154,2]
[337038839,1725371440416,-2173.23338372,0.00025689,2]
[337038841,1725371440425,-150.11224,0.000257,9]
[337038843,1725371440434,-600.0,0.0002619,12]
[337038844,1725371440444,-564.474,0.00026206,2]
[337038846,1725371440454,-153.536,0.00026206,2]
[337038847,1725371440464,-55648.0,0.00026206,2]
[337038849,1725371440473,-167.993,0.00026206,2]
[337038850,1725371440482,-240.75,0.00026206,2]
[337038852,1725371440492,-213.464,0.00026206,2]
[337038853,1725371440501,-3000.0,0.000264,2]
[337038855,1725371440511,-151.0,0.000264,2]
[337038856,1725371440520,-151.0,0.000264,7]
[337038858,1725371440530,-228.098587,0.000264,7]
[337038859,1725371440539,-228.098587,0.000264,7]
[337038861,1725371440549,-3000.0,0.0002641,2]
[337038862,1725371440560,-151.0,0.0002641,7]
[337038864,1725371440571,-3000.0,0.0002642,2]
[337038867,1725371440581,-3000.0,0.0002643,2]
[337038869,1725371440591,-3000.0,0.0002644,2]
[337038872,1725371440603,-151.0,0.0002644,7]
[337038873,1725371440614,-3000.0,0.0002645,2]
[337038875,1725371440624,-3000.0,0.0002646,2]
[337038876,1725371440634,-151.0,0.0002646,7]
[337038878,1725371440644,-151.0,0.0002646,7]
[337038880,1725371440655,-1586.51542,0.0002646,7]
[337038881,1725371440666,-1586.51542,0.0002646,7]
[337038883,1725371440676,-151.0,0.0002646,7]
[337038884,1725371440686,-3000.0,0.0002647,2]
[337038886,1725371440696,-194.43322,0.0002647,7]
[337038887,1725371440706,-194.43322,0.0002647,7]
[337038889,1725371440716,-3000.0,0.0002648,2]
[337038891,1725371440726,-151.0,0.0002649,7]
[337038892,1725371440736,-151.0,0.0002649,7]
[337038894,1725371440747,-151.0,0.0002649,7]
[337038895,1725371440756,-3000.0,0.0002649,2]
[337038897,1725371440767,-3000.0,0.000265,2]
[337038898,1725371440776,-600.0,0.00026501,13]
[337038900,1725371440786,-3000.0,0.0002651,2]
[337038902,1725371440796,-3000.0,0.0002652,2]
[337038903,1725371440806,-3000.0,0.0002653,2]
[337038905,1725371440817,-3000.0,0.0002654,2]
[337038906,1725371440827,-3000.0,0.0002655,2]
[337038908,1725371440837,-4942.992435,0.0002656,2]
[337038910,1725371440850,-257.84,0.000266,14]
[337038911,1725371440860,-537.69,0.000266,14]
[337038913,1725371440870,-823.0,0.00026775,2]
[337038914,1725371440880,-299.8,0.00027137,3]
[337038916,1725371440890,-2546.7851436,0.00027248,2]
[337038918,1725371440899,-500.0,0.00027321,10]
[337038919,1725371440909,-500.0,0.00027321,10]
[337038921,1725371440919,-155.02,0.00027399,2]
[337038922,1725371440929,-198228.5,0.000274,14]
[337038924,1725371440939,-71732.81183654,0.000274,14]
[337038932,1725371441060,-304.2652695,0.000274,14]
[337038934,1725371441074,-55745.92289396,0.000274,14]
[337038936,1725371441084,-151.0,0.000274,7]
[337038937,1725371441095,-151.0,0.000274,7]
[337038939,1725371441105,-245.0,0.000274,7]
[337038941,1725371441115,-230.900295,0.000274,7]
[337038942,1725371441125,-230.900295,0.000274,7]
[337038944,1725371441135,-151.0,0.000274,7]
[337038946,1725371441145,-151.571377,0.000274,7]
[337038947,1725371441155,-151.0,0.000274,7]
[337038949,1725371441165,-151.0,0.000274,7]
[337038951,1725371441174,-151.0,0.000274,7]
[337038952,1725371441184,-151.0,0.000274,2]
[337038954,1725371441194,-151.0,0.000274,7]
[337038955,1725371441204,-151.0,0.000274,7]
[337038957,1725371441213,-228.098587,0.000274,7]
[337038958,1725371441223,-228.098587,0.000274,7]
[337038960,1725371441233,-151.0,0.000274,7]
[337038962,1725371441242,-194.43322,0.000274,7]
[337038963,1725371441251,-194.43322,0.000274,7]
[337038965,1725371441261,-151.0,0.000274,7]
[337038966,1725371441270,-151.00000054,0.000274,7]
[337038968,1725371441281,-1586.51542,0.000274,7]
[337038969,1725371441290,-1586.51542,0.000274,7]
[337038971,1725371441300,-152.880489,0.000274,7]
[337038973,1725371441310,-152.416596,0.000274,7]
[337038974,1725371441320,-12432.64537356,0.000275,2]
[337038976,1725371441330,-647126.33,0.000275,14]
[337038981,1725371441403,-151.0,0.000275,7]
[337038983,1725371441414,-151.0,0.000275,7]
[337038984,1725371441424,-230.900295,0.000275,7]
[337038986,1725371441434,-230.900295,0.000275,7]
[337038987,1725371441444,-153.810257,0.000275,7]
[337038989,1725371441454,-151.0,0.000275,7]
[337038991,1725371441465,-153.24606,0.000275,7]
[337038992,1725371441474,-151.0,0.000275,2]
[337038994,1725371441484,-151.0,0.000275,7]
[337038995,1725371441494,-151.0,0.000275,7]
[337038997,1725371441503,-228.098587,0.000275,7]
[337038998,1725371441513,-228.098587,0.000275,7]
[337039000,1725371441523,-151.0,0.000275,7]
[337039002,1725371441533,-194.43322,0.000275,7]
[337039003,1725371441543,-194.43322,0.000275,7]
[337039005,1725371441553,-151.0,0.000275,7]
[337039006,1725371441563,-1586.51542,0.000275,7]
[337039008,1725371441574,-1586.51542,0.000275,7]
[337039010,1725371441588,-270.1194102,0.000275,2]
[337039011,1725371441601,-270.11941017,0.000275,2]
[337039013,1725371441611,-270.11941017,0.000275,2]
[337039015,1725371441621,-270.11941017,0.000275,2]
[337039016,1725371441631,-153.0,0.00027507,2]
[337039018,1725371441641,-153.0,0.00027507,2]
[337039019,1725371441651,-153.0,0.00027507,2]
[337039021,1725371441662,-153.0,0.00027507,2]
[337039023,1725371441673,-414.9913284,0.00027507,2]
[337039024,1725371441682,-307.7598817,0.00027507,2]
[337039026,1725371441691,-823.0,0.00027669,2]
[337039027,1725371441702,-7521.06564578,0.0002799,2]
[337039029,1725371441712,-153.0,0.00028,2]
[337039031,1725371441722,-153.0,0.00028,2]
[337039033,1725371441732,-539.4234675,0.00028,2]
[337039035,1725371441741,-153.0,0.00028,2]
[337039037,1725371441750,-299.8,0.00028446,4]
[337039039,1725371441760,-1000.0,0.00029,2]
[337039041,1725371441770,-1152.0,0.00029131,2]
[337039042,1725371441780,-523.0,0.00029206,2]
[337039043,1725371441791,-150.0,0.00029206,2]
[337039044,1725371441800,-71.95313268,0.00029206,2]
[337039045,1725371441821,-7303.07586732,0.00029206,2]
[337039046,1725371441830,-150.0,0.00029206,2]
[337039047,1725371441840,-150.0,0.00029206,2]
[337039048,1725371441855,-600.0,0.00029498,31]
[337039049,1725371441865,-1416.9639805,0.00029735,2]
[337039050,1725371441874,-299.8,0.00029755,4]
[337039051,1725371441884,-11856.47109176,0.00029861,2]
[337039052,1725371441894,-151.0,0.0003,120]
[337039053,1725371441904,-601.65217797,0.0003,2]
[337039054,1725371441913,-409.8804906,0.0003,2]
[337039055,1725371441923,-159.777414,0.0003,2]
[337039056,1725371441933,-198.0,0.0003,2]
[337039057,1725371441943,-306.0,0.00030171,2]
[337039058,1725371441953,-153.0,0.00030171,2]
[337039059,1725371441963,-153.0,0.00030171,2]
[337039060,1725371441973,-153.0,0.00030171,2]
[337039061,1725371441982,-257.84,0.000302,14]
[337039062,1725371441992,-537.69,0.000302,14]
[337039063,1725371442001,-1416.9639805,0.00030235,2]
[337039064,1725371442011,-1152.0,0.00030436,2]
[337039066,1725371442021,-299.8,0.00031064,5]
[337039067,1725371442030,-2546.7851436,0.00031205,2]
[337039068,1725371442041,-153.96298892,0.00031299,2]
[337039069,1725371442050,-1823.95829228,0.00031299,2]
[337039071,1725371442060,-4193.24003757,0.000313,2]
[337039100,1725371443452,-11169.70230708,0.000249,2]
[337039101,1725371443462,-1816.69996243,0.000313,2]
[337039102,1725371443471,-175.938759,0.000313,2]
[337039103,1725371443481,-1005.043123,0.000313,6]
[337039104,1725371443491,-631.40463408,0.00031624,59]
[337039105,1725371443500,-600.0,0.00031624,59]
[337039106,1725371443509,-600.0,0.00031624,59]
[337039107,1725371443520,-600.0,0.00031624,59]
[337039108,1725371443529,-76080.71944732,0.000317,14]
[337039109,1725371443549,-1024.1558917,0.000317,14]
[337039110,1725371443600,-60.85628519,0.000317,14]
[337039138,1725371625626,184.671544,0.0001913,2]
[337039139,1725371634122,182.495798,0.00019578,2]
[337039140,1725371645415,494.7985125,0.00019505,2]
[337039141,1725371680931,250.0,0.00019652,2]
[337039142,1725371681156,250.0,0.00019706,2]
[337039143,1725371681394,250.0,0.00019759,2]